[Event "December 5 Early 2023"]
[Site "https://www.chess.com"]
[Date "2023.12.05"]
[Round "2"]
[White "Zou, Chen"]
[Black "Mendoza, Rodrigo"]
[Result "1-0"]
[Board "90"]
[TimeControl "180+1"]
[WhiteFideId "8610959"]
[BlackFideId "3301931"]
[WhiteElo "2719"]
[BlackElo "2491"]
[WhiteTeam "CHN"]
[BlackTeam "BOL"]
[WhiteClock "0:01:49"]
[BlackClock "0:00:32"]

1. e4 {[%clk 0:03:00]}  c6 {[%clk 0:02:59]} 2. d3 {[%clk 0:03:00]}  d5 {[%clk 0:02:59]} 3. Qe2 {[%clk 0:03:01]}  Nf6 {[%clk 0:02:54]} 4. Nf3 {[%clk 0:03:00]}  Bg4 {[%clk 0:02:52]} 5. Nbd2 {[%clk 0:02:59]}  e6 {[%clk 0:02:52]} 6. h3 {[%clk 0:02:58]}  Bh5 {[%clk 0:02:51]} 7. g4 {[%clk 0:02:53]}  Bg6 {[%clk 0:02:50]} 8. Ne5 {[%clk 0:02:54]}  Qc7 {[%clk 0:02:35]} 9. Nxg6 {[%clk 0:02:51]}  hxg6 {[%clk 0:02:36]} 10. Bg2 {[%clk 0:02:51]}  Be7 {[%clk 0:02:27]} 11. a3 {[%clk 0:02:48]}  Nbd7 {[%clk 0:02:19]} 12. b4 {[%clk 0:02:38]}  Qe5 {[%clk 0:02:04]} 13. Rb1 {[%clk 0:02:35]}  O-O-O {[%clk 0:01:51]} 14. b5 {[%clk 0:02:26]}  c5 {[%clk 0:01:43]} 15. Bb2 {[%clk 0:02:26]}  Qf4 {[%clk 0:01:32]} 16. e5 {[%clk 0:02:13]}  Nh7 {[%clk 0:01:26]} 17. Nf3 {[%clk 0:01:56]}  Ng5 {[%clk 0:01:22]} 18. Ng1 {[%clk 0:01:56]}  d4 {[%clk 0:01:03]} 19. Bc1 {[%clk 0:01:48]}  Qxe5 {[%clk 0:00:56]} 20. Qxe5 {[%clk 0:01:49]}  Nxe5 {[%clk 0:00:32]} 21. f4 {[%clk 0:01:49]} 1-0

[Event "December 5 Early 2023"]
[Site "https://www.chess.com"]
[Date "2023.12.05"]
[Round "2"]
[White "Rosh Jain"]
[Black "Mamedov, Edgar"]
[Result "0-1"]
[Board "92"]
[TimeControl "180+1"]
[WhiteFideId "25789465"]
[BlackFideId "13739980"]
[WhiteElo "2441"]
[BlackElo "2716"]
[WhiteTeam "IND"]
[BlackTeam "KAZ"]
[WhiteClock "0:00:20"]
[BlackClock "0:00:22"]

1. e4 {[%clk 0:03:00]}  c5 {[%clk 0:02:59]} 2. Nf3 {[%clk 0:03:00]}  e6 {[%clk 0:02:55]} 3. d4 {[%clk 0:03:00]}  cxd4 {[%clk 0:02:55]} 4. Nxd4 {[%clk 0:03:01]}  Nf6 {[%clk 0:02:55]} 5. Bd3 {[%clk 0:02:59]}  Nc6 {[%clk 0:02:54]} 6. Nxc6 {[%clk 0:02:59]}  bxc6 {[%clk 0:02:55]} 7. Nc3 {[%clk 0:03:00]}  d5 {[%clk 0:02:55]} 8. exd5 {[%clk 0:03:00]}  cxd5 {[%clk 0:02:55]} 9. Bf4 {[%clk 0:02:57]}  Be7 {[%clk 0:02:53]} 10. O-O {[%clk 0:02:55]}  O-O {[%clk 0:02:52]} 11. Nb5 {[%clk 0:02:47]}  Bd7 {[%clk 0:02:46]} 12. Nd4 {[%clk 0:02:35]}  Qb6 {[%clk 0:02:43]} 13. Nb3 {[%clk 0:02:34]}  a5 {[%clk 0:02:41]} 14. a4 {[%clk 0:02:34]}  Rfc8 {[%clk 0:02:30]} 15. Be3 {[%clk 0:02:33]}  Qb7 {[%clk 0:02:28]} 16. Qd2 {[%clk 0:02:28]}  Bb4 {[%clk 0:02:23]} 17. Qe2 {[%clk 0:02:26]}  e5 {[%clk 0:02:16]} 18. c3 {[%clk 0:02:20]}  Bf8 {[%clk 0:02:04]} 19. Bb5 {[%clk 0:02:15]}  Be6 {[%clk 0:01:52]} 20. Bg5 {[%clk 0:02:13]}  Ne4 {[%clk 0:01:50]} 21. Bh4 {[%clk 0:02:11]}  d4 {[%clk 0:01:03]} 22. Nd2 {[%clk 0:01:45]}  Nxd2 {[%clk 0:01:02]} 23. Qxd2 {[%clk 0:01:46]}  Bd5 {[%clk 0:01:00]} 24. f3 {[%clk 0:01:44]}  Bc4 {[%clk 0:00:59]} 25. Bxc4 {[%clk 0:01:44]}  Rxc4 {[%clk 0:01:00]} 26. Bf2 {[%clk 0:01:43]}  dxc3 {[%clk 0:00:58]} 27. bxc3 {[%clk 0:01:43]}  Rac8 {[%clk 0:00:57]} 28. Rac1 {[%clk 0:01:41]}  Rxa4 {[%clk 0:00:54]} 29. Rfe1 {[%clk 0:01:29]}  e4 {[%clk 0:00:52]} 30. fxe4 {[%clk 0:01:29]}  Rxe4 {[%clk 0:00:53]} 31. Rxe4 {[%clk 0:01:27]}  Qxe4 {[%clk 0:00:54]} 32. Ra1 {[%clk 0:01:24]}  a4 {[%clk 0:00:50]} 33. Qd4 {[%clk 0:01:20]}  Qxd4 {[%clk 0:00:50]} 34. cxd4 {[%clk 0:01:21]}  a3 {[%clk 0:00:48]} 35. g3 {[%clk 0:01:12]}  Rc2 {[%clk 0:00:45]} 36. Kg2 {[%clk 0:01:08]}  a2 {[%clk 0:00:41]} 37. Kf3 {[%clk 0:01:08]}  g5 {[%clk 0:00:35]} 38. Be3 {[%clk 0:01:04]}  Bb4 {[%clk 0:00:34]} 39. Ke4 {[%clk 0:00:58]}  Bc3 {[%clk 0:00:33]} 40. Kd3 {[%clk 0:00:46]}  Bxa1 {[%clk 0:00:29]} 41. Kxc2 {[%clk 0:00:46]}  Bc3 {[%clk 0:00:29]} 42. Kxc3 {[%clk 0:00:45]}  a1=Q+ {[%clk 0:00:29]} 43. Kd3 {[%clk 0:00:45]}  Qd1+ {[%clk 0:00:28]} 44. Ke4 {[%clk 0:00:45]}  Qg4+ {[%clk 0:00:27]} 45. Kd3 {[%clk 0:00:42]}  Qf5+ {[%clk 0:00:26]} 46. Ke2 {[%clk 0:00:42]}  Qe4 {[%clk 0:00:25]} 47. Kf2 {[%clk 0:00:41]}  g4 {[%clk 0:00:24]} 48. Ke2 {[%clk 0:00:41]}  Qc2+ {[%clk 0:00:23]} 49. Ke1 {[%clk 0:00:40]}  Qxh2 {[%clk 0:00:23]} 50. Bf4 {[%clk 0:00:39]}  Qg2 {[%clk 0:00:23]} 51. Kd1 {[%clk 0:00:38]}  Qe4 {[%clk 0:00:22]} 52. Be5 {[%clk 0:00:37]}  f6 {[%clk 0:00:22]} 53. Bf4 {[%clk 0:00:37]}  Qxd4+ {[%clk 0:00:21]} 54. Ke2 {[%clk 0:00:35]}  h5 {[%clk 0:00:21]} 55. Kf1 {[%clk 0:00:34]}  h4 {[%clk 0:00:21]} 56. Be3 {[%clk 0:00:21]}  Qxe3 {[%clk 0:00:20]} 57. Kg2 {[%clk 0:00:21]}  Qxg3+ {[%clk 0:00:20]} 58. Kh1 {[%clk 0:00:21]}  Qf3+ {[%clk 0:00:20]} 59. Kg1 {[%clk 0:00:20]}  h3 {[%clk 0:00:21]} 60. Kh2 {[%clk 0:00:20]}  Qg2# {[%clk 0:00:22]} 0-1

[Event "December 5 Early 2023"]
[Site "https://www.chess.com"]
[Date "2023.12.05"]
[Round "2"]
[White "Arabidze, Meri"]
[Black "Sai Han Thiha"]
[Result "1-0"]
[Board "97"]
[TimeControl "180+1"]
[WhiteFideId "13604040"]
[BlackFideId "13012290"]
[WhiteElo "2706"]
[BlackElo "2408"]
[WhiteTeam "GEO"]
[BlackTeam "MYA"]
[WhiteClock "0:01:05"]
[BlackClock "0:00:05"]

1. b3 {[%clk 0:03:00]}  d5 {[%clk 0:02:59]} 2. Bb2 {[%clk 0:03:01]}  Nf6 {[%clk 0:03:00]} 3. Nf3 {[%clk 0:03:01]}  Bf5 {[%clk 0:03:00]} 4. e3 {[%clk 0:03:02]}  e6 {[%clk 0:03:00]} 5. Bd3 {[%clk 0:03:01]}  Bd6 {[%clk 0:02:54]} 6. Bxf5 {[%clk 0:02:59]}  exf5 {[%clk 0:02:54]} 7. Nc3 {[%clk 0:02:59]}  c6 {[%clk 0:02:54]} 8. Ne2 {[%clk 0:02:59]}  Nbd7 {[%clk 0:02:52]} 9. Ng3 {[%clk 0:02:59]}  g6 {[%clk 0:02:48]} 10. d3 {[%clk 0:02:55]}  Qe7 {[%clk 0:02:47]} 11. a3 {[%clk 0:02:45]}  f4 {[%clk 0:02:32]} 12. Nf1 {[%clk 0:02:43]}  Ne5 {[%clk 0:02:30]} 13. Nxe5 {[%clk 0:02:28]}  Bxe5 {[%clk 0:02:31]} 14. Bxe5 {[%clk 0:02:27]}  Qxe5 {[%clk 0:02:32]} 15. d4 {[%clk 0:02:21]}  Qe6 {[%clk 0:02:12]} 16. Qf3 {[%clk 0:02:21]}  fxe3 {[%clk 0:02:09]} 17. Qxe3 {[%clk 0:02:22]}  Kd7 {[%clk 0:02:04]} 18. Qxe6+ {[%clk 0:02:19]}  Kxe6 {[%clk 0:02:05]} 19. Ne3 {[%clk 0:02:20]}  Rae8 {[%clk 0:02:02]} 20. f3 {[%clk 0:02:19]}  Nh5 {[%clk 0:01:58]} 21. Kf2 {[%clk 0:02:19]}  Kd6 {[%clk 0:01:57]} 22. c4 {[%clk 0:02:15]}  Nf4 {[%clk 0:01:49]} 23. Rhd1 {[%clk 0:02:14]}  Re7 {[%clk 0:01:42]} 24. Rac1 {[%clk 0:01:46]}  Rhe8 {[%clk 0:01:36]} 25. Rc3 {[%clk 0:01:45]}  f6 {[%clk 0:01:26]} 26. h4 {[%clk 0:01:38]}  h5 {[%clk 0:01:24]} 27. Re1 {[%clk 0:01:23]}  Re6 {[%clk 0:00:54]} 28. g3 {[%clk 0:01:18]}  dxc4 {[%clk 0:00:10]} 29. bxc4 {[%clk 0:01:08]}  g5 {[%clk 0:00:05]} 30. gxf4 {[%clk 0:01:06]}  gxf4 {[%clk 0:00:06]} 31. Nf5+ {[%clk 0:01:05]}  Kd7 {[%clk 0:00:06]} 32. Rxe6 {[%clk 0:01:05]}  Kxe6 {[%clk 0:00:05]} 33. Ng7+ {[%clk 0:01:05]} 1-0

[Event "December 5 Early 2023"]
[Site "https://www.chess.com"]
[Date "2023.12.05"]
[Round "2"]
[White "Paltrinieri, Nicholas"]
[Black "Carre, Sylvain"]
[Result "1-0"]
[Board "98"]
[TimeControl "180+1"]
[WhiteFideId "828262"]
[BlackFideId "642118"]
[WhiteElo "2704"]
[BlackElo "2391"]
[WhiteTeam "ITA"]
[BlackTeam "FRA"]
[WhiteClock "0:01:06"]
[BlackClock "0:00:02"]

1. d4 {[%clk 0:03:00]}  d5 {[%clk 0:02:59]} 2. Bf4 {[%clk 0:02:57]}  Nf6 {[%clk 0:02:59]} 3. e3 {[%clk 0:02:58]}  c5 {[%clk 0:02:59]} 4. c3 {[%clk 0:02:58]}  Nc6 {[%clk 0:02:59]} 5. Nd2 {[%clk 0:02:58]}  Qb6 {[%clk 0:02:58]} 6. Qb3 {[%clk 0:02:56]}  c4 {[%clk 0:02:57]} 7. Qxb6 {[%clk 0:02:56]}  axb6 {[%clk 0:02:58]} 8. a3 {[%clk 0:02:57]}  b5 {[%clk 0:02:57]} 9. Rc1 {[%clk 0:02:57]}  Bf5 {[%clk 0:02:57]} 10. Ngf3 {[%clk 0:02:58]}  h6 {[%clk 0:02:57]} 11. Be2 {[%clk 0:02:58]}  e6 {[%clk 0:02:55]} 12. O-O {[%clk 0:02:58]}  Kd7 {[%clk 0:02:53]} 13. Rfe1 {[%clk 0:02:58]}  Bd6 {[%clk 0:02:53]} 14. Bd1 {[%clk 0:02:58]}  Bd3 {[%clk 0:02:48]} 15. Bc2 {[%clk 0:02:57]}  Bxc2 {[%clk 0:02:49]} 16. Rxc2 {[%clk 0:02:58]}  Rhf8 {[%clk 0:02:42]} 17. Bxd6 {[%clk 0:02:56]}  Kxd6 {[%clk 0:02:42]} 18. e4 {[%clk 0:02:57]}  dxe4 {[%clk 0:02:41]} 19. Nxe4+ {[%clk 0:02:58]}  Nxe4 {[%clk 0:02:41]} 20. Rxe4 {[%clk 0:02:59]}  Ne7 {[%clk 0:02:20]} 21. Rce2 {[%clk 0:02:49]}  Nd5 {[%clk 0:02:20]} 22. g3 {[%clk 0:02:49]}  Rfc8 {[%clk 0:01:56]} 23. Re1 {[%clk 0:02:42]}  Rc7 {[%clk 0:01:54]} 24. Kg2 {[%clk 0:02:41]}  b4 {[%clk 0:01:42]} 25. axb4 {[%clk 0:02:41]}  Ra2 {[%clk 0:01:41]} 26. R4e2 {[%clk 0:02:38]}  b5 {[%clk 0:01:36]} 27. h4 {[%clk 0:02:33]}  Rca7 {[%clk 0:01:35]} 28. Rd2 {[%clk 0:02:30]}  Ra1 {[%clk 0:01:33]} 29. Rde2 {[%clk 0:02:26]}  Rxe1 {[%clk 0:01:32]} 30. Rxe1 {[%clk 0:02:26]}  Ra2 {[%clk 0:01:31]} 31. Rb1 {[%clk 0:02:27]}  f6 {[%clk 0:01:23]} 32. Kf1 {[%clk 0:02:26]}  Nb6 {[%clk 0:01:24]} 33. Nd2 {[%clk 0:02:16]}  Na4 {[%clk 0:01:20]} 34. Ne4+ {[%clk 0:02:16]}  Kd5 {[%clk 0:01:17]} 35. Nc5 {[%clk 0:02:16]}  Rxb2 {[%clk 0:01:06]} 36. Re1 {[%clk 0:02:16]}  Nxc5 {[%clk 0:01:04]} 37. dxc5 {[%clk 0:02:15]}  e5 {[%clk 0:00:55]} 38. g4 {[%clk 0:02:03]}  Rd2 {[%clk 0:00:53]} 39. Re3 {[%clk 0:01:57]}  e4 {[%clk 0:00:44]} 40. Kg2 {[%clk 0:01:54]}  Rd3 {[%clk 0:00:43]} 41. Kg3 {[%clk 0:01:54]}  g6 {[%clk 0:00:38]} 42. h5 {[%clk 0:01:52]}  gxh5 {[%clk 0:00:37]} 43. gxh5 {[%clk 0:01:52]}  Ke5 {[%clk 0:00:36]} 44. Kg2 {[%clk 0:01:45]}  f5 {[%clk 0:00:35]} 45. Kf1 {[%clk 0:01:34]}  f4 {[%clk 0:00:34]} 46. Rxd3 {[%clk 0:01:16]}  cxd3 {[%clk 0:00:20]} 47. Ke1 {[%clk 0:01:15]}  e3 {[%clk 0:00:20]} 48. f3 {[%clk 0:01:10]}  Kd5 {[%clk 0:00:18]} 49. Kd1 {[%clk 0:01:10]}  Kc6 {[%clk 0:00:04]} 50. Kc1 {[%clk 0:01:08]}  Kd7 {[%clk 0:00:05]} 51. Kd1 {[%clk 0:01:09]}  Kc7 {[%clk 0:00:05]} 52. Ke1 {[%clk 0:01:09]}  Kc6 {[%clk 0:00:06]} 53. Kd1 {[%clk 0:01:05]}  Kd5 {[%clk 0:00:07]} 54. Ke1 {[%clk 0:01:06]}  Kc4 {[%clk 0:00:07]} 55. c6 {[%clk 0:01:05]}  Kxc3 {[%clk 0:00:06]} 56. c7 {[%clk 0:01:06]}  d2+ {[%clk 0:00:05]} 57. Ke2 {[%clk 0:01:06]}  Kxb4 {[%clk 0:00:02]} 58. c8=Q {[%clk 0:01:06]} 1-0

[Event "December 5 Early 2023"]
[Site "https://www.chess.com"]
[Date "2023.12.05"]
[Round "2"]
[White "Bolat, Inayat"]
[Black "Wu, Derek"]
[Result "1-0"]
[Board "99"]
[TimeControl "180+1"]
[WhiteFideId "13733125"]
[BlackFideId "30914558"]
[WhiteElo "2388"]
[BlackElo "2702"]
[WhiteTeam "KAZ"]
[BlackTeam "USA"]
[WhiteClock "0:00:24"]
[BlackClock "0:00:08"]

1. e4 {[%clk 0:03:00]}  e6 {[%clk 0:03:00]} 2. d4 {[%clk 0:02:59]}  d5 {[%clk 0:03:01]} 3. Nc3 {[%clk 0:02:59]}  Nf6 {[%clk 0:03:00]} 4. Bg5 {[%clk 0:02:59]}  Be7 {[%clk 0:02:53]} 5. e5 {[%clk 0:02:59]}  Nfd7 {[%clk 0:02:53]} 6. Bxe7 {[%clk 0:03:00]}  Qxe7 {[%clk 0:02:54]} 7. f4 {[%clk 0:03:00]}  a6 {[%clk 0:02:54]} 8. Nf3 {[%clk 0:03:00]}  c5 {[%clk 0:02:55]} 9. Bd3 {[%clk 0:02:58]}  Nc6 {[%clk 0:02:49]} 10. O-O {[%clk 0:02:55]}  b5 {[%clk 0:02:38]} 11. a3 {[%clk 0:02:48]}  Bb7 {[%clk 0:02:33]} 12. Qe1 {[%clk 0:02:48]}  cxd4 {[%clk 0:02:31]} 13. Ne2 {[%clk 0:02:46]}  Nc5 {[%clk 0:02:17]} 14. Nexd4 {[%clk 0:02:40]}  Nxd4 {[%clk 0:02:15]} 15. Nxd4 {[%clk 0:02:41]}  Rc8 {[%clk 0:02:07]} 16. Rc1 {[%clk 0:02:39]}  O-O {[%clk 0:01:40]} 17. Qg3 {[%clk 0:02:29]}  f5 {[%clk 0:01:30]} 18. Qh3 {[%clk 0:02:02]}  Ne4 {[%clk 0:01:27]} 19. c3 {[%clk 0:01:44]}  Kh8 {[%clk 0:01:18]} 20. g4 {[%clk 0:01:31]}  fxg4 {[%clk 0:01:15]} 21. Qxg4 {[%clk 0:01:30]}  Nc5 {[%clk 0:01:15]} 22. Rf3 {[%clk 0:01:24]}  Qf7 {[%clk 0:01:00]} 23. Rcf1 {[%clk 0:01:15]}  Rce8 {[%clk 0:00:47]} 24. Bc2 {[%clk 0:01:10]}  Ne4 {[%clk 0:00:46]} 25. f5 {[%clk 0:00:34]}  Nd2 {[%clk 0:00:37]} 26. fxe6 {[%clk 0:00:29]}  Nxf3+ {[%clk 0:00:35]} 27. Rxf3 {[%clk 0:00:30]}  Qg8 {[%clk 0:00:21]} 28. Bxh7 {[%clk 0:00:24]}  Qxh7 {[%clk 0:00:10]} 29. Rh3 {[%clk 0:00:24]}  Re7 {[%clk 0:00:08]} 30. Rxh7+ {[%clk 0:00:23]}  Kxh7 {[%clk 0:00:09]} 31. Qh4+ {[%clk 0:00:23]}  Kg8 {[%clk 0:00:08]} 32. Qxe7 {[%clk 0:00:24]} 1-0

[Event "December 5 Early 2023"]
[Site "https://www.chess.com"]
[Date "2023.12.05"]
[Round "2"]
[White "Manon-og, Ramon Jr."]
[Black "Hua, Lefong"]
[Result "0-1"]
[Board "101"]
[TimeControl "180+1"]
[WhiteFideId "5200776"]
[BlackFideId "2602253"]
[WhiteElo "2381"]
[BlackElo "2702"]
[WhiteTeam "PHI"]
[BlackTeam "CAN"]
[WhiteClock "0:00:00"]
[BlackClock "0:00:50"]

1. e4 {[%clk 0:03:00]}  c5 {[%clk 0:02:59]} 2. Nf3 {[%clk 0:03:00]}  g6 {[%clk 0:03:00]} 3. c3 {[%clk 0:03:00]}  Nc6 {[%clk 0:02:59]} 4. d4 {[%clk 0:02:59]}  d5 {[%clk 0:02:59]} 5. e5 {[%clk 0:02:56]}  cxd4 {[%clk 0:02:59]} 6. cxd4 {[%clk 0:02:56]}  Bg4 {[%clk 0:02:59]} 7. Be2 {[%clk 0:02:56]}  Qb6 {[%clk 0:02:59]} 8. Nc3 {[%clk 0:02:48]}  e6 {[%clk 0:02:59]} 9. Qa4 {[%clk 0:02:46]}  Bxf3 {[%clk 0:02:50]} 10. Bxf3 {[%clk 0:02:36]}  Qxd4 {[%clk 0:02:50]} 11. Qb5 {[%clk 0:02:16]}  Qxe5+ {[%clk 0:02:38]} 12. Kf1 {[%clk 0:02:16]}  Qc7 {[%clk 0:02:29]} 13. Bxd5 {[%clk 0:02:14]}  Ne7 {[%clk 0:02:02]} 14. Bf3 {[%clk 0:02:06]}  Bg7 {[%clk 0:01:59]} 15. Be3 {[%clk 0:01:39]}  O-O {[%clk 0:01:57]} 16. Rc1 {[%clk 0:01:29]}  Nf5 {[%clk 0:01:48]} 17. Bc5 {[%clk 0:01:19]}  Rfd8 {[%clk 0:01:40]} 18. g3 {[%clk 0:01:14]}  Nfd4 {[%clk 0:01:38]} 19. Bxd4 {[%clk 0:01:11]}  Nxd4 {[%clk 0:01:39]} 20. Qxb7 {[%clk 0:01:05]}  Qc4+ {[%clk 0:01:32]} 21. Kg2 {[%clk 0:01:00]}  Rab8 {[%clk 0:01:26]} 22. Qxa7 {[%clk 0:00:55]}  Nxf3 {[%clk 0:01:22]} 23. Kxf3 {[%clk 0:00:55]}  Rxb2 {[%clk 0:01:18]} 24. Ne4 {[%clk 0:00:10]}  Rd3+ {[%clk 0:01:14]} 25. Kf4 {[%clk 0:00:08]}  Bh6+ {[%clk 0:01:08]} 26. Kg4 {[%clk 0:00:09]}  Qxe4+ {[%clk 0:01:08]} 27. Kh3 {[%clk 0:00:09]}  Qf5+ {[%clk 0:01:07]} 28. Kg2 {[%clk 0:00:09]}  Qe4+ {[%clk 0:01:06]} 29. Kh3 {[%clk 0:00:10]}  Bxc1 {[%clk 0:01:05]} 30. Rxc1 {[%clk 0:00:09]}  Qf5+ {[%clk 0:00:58]} 31. Kg2 {[%clk 0:00:08]}  Rdd2 {[%clk 0:00:52]} 32. Rf1 {[%clk 0:00:04]}  Rxa2 {[%clk 0:00:49]} 33. Qb8+ {[%clk 0:00:00]}  Kg7 {[%clk 0:00:50]} 0-1

[Event "December 5 Early 2023"]
[Site "https://www.chess.com"]
[Date "2023.12.05"]
[Round "2"]
[White "Spichkin, Alexander"]
[Black "Makhnev, Denis"]
[Result "1/2-1/2"]
[Board "104"]
[TimeControl "180+1"]
[WhiteFideId "4144074"]
[BlackFideId "13707647"]
[WhiteElo "2356"]
[BlackElo "2691"]
[WhiteTeam "RUS"]
[BlackTeam "KAZ"]
[WhiteClock "0:01:40"]
[BlackClock "0:00:47"]

1. f4 {[%clk 0:03:00]}  Nf6 {[%clk 0:02:59]} 2. Nf3 {[%clk 0:03:00]}  g6 {[%clk 0:02:58]} 3. d3 {[%clk 0:02:58]}  Bg7 {[%clk 0:02:58]} 4. e4 {[%clk 0:02:58]}  O-O {[%clk 0:02:58]} 5. Be2 {[%clk 0:02:59]}  c5 {[%clk 0:02:58]} 6. O-O {[%clk 0:02:59]}  Nc6 {[%clk 0:02:58]} 7. Nc3 {[%clk 0:02:58]}  Rb8 {[%clk 0:02:58]} 8. a4 {[%clk 0:02:56]}  a6 {[%clk 0:02:57]} 9. Qe1 {[%clk 0:02:55]}  b5 {[%clk 0:02:57]} 10. axb5 {[%clk 0:02:55]}  axb5 {[%clk 0:02:58]} 11. Qh4 {[%clk 0:02:55]}  b4 {[%clk 0:02:58]} 12. Nd1 {[%clk 0:02:52]}  d6 {[%clk 0:02:56]} 13. Ne3 {[%clk 0:02:50]}  Nd4 {[%clk 0:02:50]} 14. Bd1 {[%clk 0:02:49]}  Bd7 {[%clk 0:02:41]} 15. f5 {[%clk 0:02:49]}  Ra8 {[%clk 0:02:31]} 16. Rxa8 {[%clk 0:02:44]}  Qxa8 {[%clk 0:02:32]} 17. Nc4 {[%clk 0:02:41]}  Bb5 {[%clk 0:02:16]} 18. Nxd4 {[%clk 0:02:30]}  cxd4 {[%clk 0:02:15]} 19. fxg6 {[%clk 0:02:24]}  hxg6 {[%clk 0:02:12]} 20. b3 {[%clk 0:02:17]}  Bxc4 {[%clk 0:02:05]} 21. bxc4 {[%clk 0:02:17]}  Qa5 {[%clk 0:02:00]} 22. Bg5 {[%clk 0:02:04]}  Rb8 {[%clk 0:01:54]} 23. Bd2 {[%clk 0:01:53]}  Qc5 {[%clk 0:01:43]} 24. h3 {[%clk 0:01:49]}  Bf8 {[%clk 0:01:32]} 25. Qf2 {[%clk 0:01:47]}  Bg7 {[%clk 0:01:28]} 26. g4 {[%clk 0:01:47]}  Rf8 {[%clk 0:01:25]} 27. Qh4 {[%clk 0:01:42]}  Ra8 {[%clk 0:01:09]} 28. Qf2 {[%clk 0:01:41]}  Rf8 {[%clk 0:00:52]} 29. Qe1 {[%clk 0:01:41]}  Rb8 {[%clk 0:00:49]} 30. Qf2 {[%clk 0:01:40]}  Rf8 {[%clk 0:00:47]} 1/2-1/2

[Event "December 5 Early 2023"]
[Site "https://www.chess.com"]
[Date "2023.12.05"]
[Round "2"]
[White "YurasovMat-2012"]
[Black "Souleidis, Georgios"]
[Result "1-0"]
[Board "106"]
[TimeControl "180+1"]
[BlackFideId "4206827"]
[WhiteElo "2312"]
[BlackElo "2682"]
[BlackTeam "GRE"]
[WhiteClock "0:01:11"]
[BlackClock "0:00:00"]

1. e4 {[%clk 0:03:00]}  c5 {[%clk 0:03:00]} 2. Nf3 {[%clk 0:02:59]}  e6 {[%clk 0:03:00]} 3. d3 {[%clk 0:02:59]}  d5 {[%clk 0:02:59]} 4. Nbd2 {[%clk 0:02:57]}  Nc6 {[%clk 0:02:59]} 5. g3 {[%clk 0:02:57]}  Nf6 {[%clk 0:02:57]} 6. Bg2 {[%clk 0:02:57]}  Be7 {[%clk 0:02:56]} 7. O-O {[%clk 0:02:57]}  O-O {[%clk 0:02:56]} 8. Qe2 {[%clk 0:02:56]}  h6 {[%clk 0:02:50]} 9. Rd1 {[%clk 0:02:56]}  b5 {[%clk 0:02:42]} 10. b3 {[%clk 0:02:51]}  a5 {[%clk 0:02:40]} 11. Bb2 {[%clk 0:02:51]}  a4 {[%clk 0:02:25]} 12. bxa4 {[%clk 0:02:37]}  bxa4 {[%clk 0:02:19]} 13. a3 {[%clk 0:02:36]}  Rb8 {[%clk 0:02:16]} 14. Rab1 {[%clk 0:02:35]}  Ba6 {[%clk 0:02:11]} 15. exd5 {[%clk 0:02:33]}  exd5 {[%clk 0:02:09]} 16. Ne5 {[%clk 0:02:32]}  Nxe5 {[%clk 0:01:57]} 17. Bxe5 {[%clk 0:02:33]}  Rxb1 {[%clk 0:01:40]} 18. Rxb1 {[%clk 0:02:31]}  Re8 {[%clk 0:01:41]} 19. Qf3 {[%clk 0:02:27]}  Qa5 {[%clk 0:01:15]} 20. c3 {[%clk 0:02:18]}  d4 {[%clk 0:01:03]} 21. Nc4 {[%clk 0:02:04]}  Bxc4 {[%clk 0:01:02]} 22. dxc4 {[%clk 0:02:05]}  dxc3 {[%clk 0:00:53]} 23. Bxc3 {[%clk 0:02:01]}  Qc7 {[%clk 0:00:49]} 24. Re1 {[%clk 0:01:56]}  Rd8 {[%clk 0:00:37]} 25. h3 {[%clk 0:01:53]}  Kf8 {[%clk 0:00:35]} 26. Rb1 {[%clk 0:01:51]}  Rb8 {[%clk 0:00:32]} 27. Rd1 {[%clk 0:01:50]}  Rd8 {[%clk 0:00:31]} 28. Re1 {[%clk 0:01:48]}  Qd7 {[%clk 0:00:23]} 29. Kh2 {[%clk 0:01:46]}  Qd3 {[%clk 0:00:20]} 30. Qb7 {[%clk 0:01:37]}  Qd7 {[%clk 0:00:17]} 31. Qb2 {[%clk 0:01:31]}  Kg8 {[%clk 0:00:09]} 32. Qe2 {[%clk 0:01:30]}  Kf8 {[%clk 0:00:08]} 33. Bf3 {[%clk 0:01:25]}  Re8 {[%clk 0:00:08]} 34. Rd1 {[%clk 0:01:24]}  Qc8 {[%clk 0:00:08]} 35. Qc2 {[%clk 0:01:23]}  Rd8 {[%clk 0:00:07]} 36. Rb1 {[%clk 0:01:22]}  Qd7 {[%clk 0:00:06]} 37. Bg2 {[%clk 0:01:20]}  Qd3 {[%clk 0:00:06]} 38. Qxd3 {[%clk 0:01:18]}  Rxd3 {[%clk 0:00:07]} 39. Rb8+ {[%clk 0:01:17]}  Rd8 {[%clk 0:00:07]} 40. Rb7 {[%clk 0:01:15]}  Ne8 {[%clk 0:00:06]} 41. Ra7 {[%clk 0:01:14]}  Rd3 {[%clk 0:00:05]} 42. Be5 {[%clk 0:01:13]}  f6 {[%clk 0:00:05]} 43. Bf4 {[%clk 0:01:13]}  g5 {[%clk 0:00:05]} 44. Be3 {[%clk 0:01:12]}  Rxa3 {[%clk 0:00:05]} 45. Ra8 {[%clk 0:01:11]}  Kf7 {[%clk 0:00:00]} 46. Bd5+ {[%clk 0:01:11]} 1-0